bitfinex-derivatives/quotes_SOLF0:USTF0_20260102
["timestamp","ask_amount","ask_price","bid_price","bid_amount"]
[1767364261588,0.05354112,127.7,127.67,0.05659376]
[1767364261790,1.45210941,127.77,127.67,1.53187837]
[1767364261990,1.45210941,127.77,127.68,11.18352631]
[1767364262485,1.45210941,127.77,127.68,8.53078461]
[1767364262683,0.05045736,127.74,127.68,8.53078461]
[1767364262887,0.05045736,127.74,127.71,0.0591217]
[1767364263285,0.05045736,127.74,127.66,7.0561]
[1767364263286,7.0528,127.73,127.66,7.0561]
[1767364263498,4.10485111,127.73,127.65,1.47528461]
[1767364263888,1.45210941,127.73,127.65,1.47528461]
[1767364264289,7.055,127.69,127.62,8.53358461]
[1767364264594,0.055542,127.67,127.64,0.05348433]
[1767364264785,1.50765141,127.67,127.59,1.47528461]
[1767364264985,1.45210941,127.67,127.59,1.47528461]
[1767364265885,0.05608893,127.64,127.62,0.05471604]
[1767364267189,0.05608893,127.64,127.56,1.47528461]
[1767364267190,8.56609834,127.64,127.56,1.47528461]
[1767364267387,8.51000941,127.64,127.56,1.47528461]
[1767364267587,7.057,127.66,127.57,1.47528461]
[1767364267782,1.45210941,127.66,127.58,1.47528461]
[1767364267989,1.45210941,127.65,127.56,1.47528461]
[1767364268397,0.05443405,127.62,127.59,0.0498276]
[1767364268894,1.45210941,127.61,127.53,4.12802631]
[1767364269797,1.45210941,127.61,127.53,1.47528461]
[1767364269994,0.0520241,127.58,127.5,1.47528461]
[1767364270194,1.45210941,127.59,127.5,1.47528461]
[1767364270395,1.45210941,127.58,127.5,1.47528461]
[1767364270690,1.45210941,127.56,127.47,1.47528461]
[1767364270897,1.45210941,127.56,127.47,94.05528461]
[1767364271193,0.05290798,127.53,127.5,0.05126168]
[1767364271399,1.45210941,127.59,127.5,1.52654629]
[1767364271598,1.45210941,127.59,127.5,1.47528461]
[1767364271796,7.0603,127.6,127.52,8.53948461]
[1767364272092,7.0603,127.6,127.52,101.13948461]
[1767364272292,0.05875431,127.57,127.49,1.47528461]
[1767364272494,1.45210941,127.58,127.49,1.47528461]
[1767364272998,1.45210941,127.58,127.5,1.47528461]
[1767364273392,92.6,127.6,127.53,0.05935401]
[1767364273594,1.45210941,127.61,127.53,0.05935401]
[1767364273795,1.45210941,127.6,127.5,1.47528461]
[1767364273994,7.0607,127.59,127.5,8.54038461]
[1767364274294,7.0607,127.59,127.51,1.47528461]
[1767364274495,0.05985649,127.56,127.49,92.6]
[1767364274696,0.05985649,127.56,127.48,1.47528461]
[1767364274697,1.5119659,127.56,127.48,1.47528461]
[1767364274899,1.45210941,127.55,127.45,1.47528461]
[1767364275088,1.45210941,127.55,127.46,94.09528461]
[1767364275394,1.45210941,127.55,127.47,1.47528461]
[1767364275603,111.27070941,127.61,127.48,1.47528461]
[1767364275795,1.45210941,127.6,127.5,1.47528461]
[1767364275995,0.05124205,127.56,127.54,0.05229511]
[1767364276204,0.05124205,127.56,127.51,92.62]
[1767364276393,0.05124205,127.56,127.48,94.09528461]
[1767364276598,1.45210941,127.58,127.48,94.09528461]
[1767364276988,1.45210941,127.56,127.46,7.0673]
[1767364277196,0.0494606,127.52,127.5,0.05521635]
[1767364277800,1.45210941,127.56,127.5,0.05521635]
[1767364278707,0.05542715,127.54,127.5,0.05521635]
[1767364279304,0.05542715,127.54,127.46,94.11528461]
[1767364279611,1.45210941,127.55,127.46,94.11528461]
[1767364279805,1.45210941,127.55,127.46,1.47528461]
[1767364280106,7.064,127.53,127.46,1.47528461]
[1767364280298,0.05711255,127.51,127.48,0.05943498]
[1767364281308,1.45210941,127.59,127.49,1.47528461]
[1767364281604,1.45210941,127.62,127.51,1.47528461]
[1767364281803,1.45210941,127.63,127.53,1.47528461]
[1767364282100,1.45210941,127.62,127.51,94.13528461]
[1767364282305,7.0592,127.62,127.53,1.47528461]
[1767364282500,0.05343678,127.59,127.56,0.05081539]
[1767364282904,7.11413678,127.59,127.52,92.66]
[1767364283105,7.11413678,127.59,127.51,101.20008461]
[1767364283407,111.25970941,127.62,127.52,1.47528461]
[1767364283903,111.25970941,127.62,127.51,92.66]
[1767364283904,1.45210941,127.62,127.56,0.05738059]
[1767364284501,7.0581,127.64,127.56,1.5326652]
[1767364284798,1.45210941,127.68,127.57,1.47528461]
[1767364284999,1.45210941,127.68,127.53,109.8783]
[1767364285000,1.50959013,127.64,127.53,117.28746]
[1767364285205,1.45210941,127.64,127.54,94.13528461]
[1767364285596,8.51000941,127.64,127.56,7.0621]
[1767364286002,8.51000941,127.64,127.56,8.53738461]
[1767364286202,0.0526446,127.61,127.59,0.0574941]
[1767364287203,0.0526446,127.61,127.54,92.66]
[1767364287409,0.0526446,127.61,127.54,94.05918167]
[1767364287913,0.0526446,127.61,127.54,1.39918167]
[1767364287914,7.1122446,127.61,127.54,1.39918167]
[1767364288114,7.1122446,127.61,127.56,0.05814125]
[1767364288513,0.0526446,127.61,127.56,1.45732292]
[1767364289708,111.16494997,127.68,127.56,1.45732292]
[1767364289902,1.40594997,127.66,127.56,1.39918167]
[1767364290305,7.0578,127.64,127.57,8.46068167]
[1767364290703,111.16494997,127.68,127.59,1.4568364]
[1767364291019,1.40594997,127.65,127.56,1.39918167]
[1767364291410,111.18744997,127.65,127.56,1.39918167]
[1767364291808,0.05367953,127.62,127.56,1.39918167]
[1767364292013,1.4596295,127.62,127.53,94.05918167]
[1767364292209,1.40594997,127.62,127.53,94.05918167]
[1767364292514,7.0596,127.61,127.53,101.12298167]
[1767364293018,0.05657511,127.58,127.56,0.06038359]
[1767364294518,7.0596,127.61,127.56,0.06038359]
[1767364295510,7.0601,127.6,127.56,0.06038359]
[1767364295721,7.11206141,127.6,127.56,0.06038359]
[1767364295923,0.05196141,127.6,127.56,1.45956526]
[1767364296306,203.84744997,127.65,127.56,1.45956526]
[1767364296307,94.06594997,127.65,127.56,1.45956526]
[1767364296517,1.40594997,127.65,127.56,1.39918167]
[1767364296717,7.0578,127.64,127.57,7.0615]
[1767364297132,1.40594997,127.65,127.56,1.39918167]
[1767364297509,0.05807709,127.62,127.52,114.44004092]
[1767364297717,1.40594997,127.61,127.5,1.39918167]
[1767364297913,1.40594997,127.61,127.52,1.39918167]
[1767364298226,1.40594997,127.59,127.51,92.64]
[1767364298425,1.40594997,127.59,127.49,1.39918167]
[1767364298728,0.05058342,127.55,127.53,0.0580789]
[1767364299632,0.05058342,127.55,127.48,92.64]
[1767364300126,7.0633,127.54,127.48,92.64]
[1767364300516,7.0633,127.54,127.47,7.0671]
[1767364300825,0.05084901,127.52,127.49,0.05658605]
[1767364301037,7.0626,127.56,127.49,0.05574467]
[1767364301420,1.40594997,127.57,127.49,1.45492634]
[1767364301631,1.40594997,127.6,127.49,1.39918167]
[1767364302026,0.05379973,127.56,127.53,0.05029477]
[1767364302223,1.40594997,127.63,127.53,1.44947644]
[1767364302421,1.40594997,127.63,127.53,94.05918167]
[1767364302826,1.40594997,127.63,127.54,1.39918167]
[1767364303330,0.05559585,127.6,127.57,0.05664734]
[1767364304526,0.05559585,127.6,127.48,133.4304]
[1767364304527,0.05559585,127.6,127.51,1.39918167]
[1767364304729,1.40594997,127.61,127.51,1.39918167]
[1767364305427,1.40594997,127.61,127.52,8.46348167]
[1767364305629,0.05937957,127.57,127.55,0.05541944]
[1767364307232,111.19134997,127.65,127.55,1.45460111]
[1767364307540,1.40594997,127.64,127.55,1.39918167]
[1767364308436,1.46237473,127.61,127.53,8.46248167]
[1767364308645,1.40594997,127.61,127.53,8.46248167]
[1767364309040,1.40594997,127.61,127.51,7.0644]
[1767364309242,1.40594997,127.59,127.5,94.05918167]
[1767364309431,0.05935364,127.56,127.53,0.05966164]
[1767364309738,7.12155364,127.56,127.53,0.05966164]
[1767364310133,7.12155364,127.56,127.47,1.39918167]
[1767364310134,1.46530361,127.56,127.47,1.39918167]
[1767364310339,1.40594997,127.56,127.47,1.39918167]
[1767364310722,7.0639,127.53,127.47,1.39918167]
[1767364311223,0.05017596,127.51,127.49,0.0586784]
[1767364311830,0.05017596,127.51,127.45,92.66]
[1767364312537,0.05017596,127.51,127.46,1.39918167]
[1767364312838,0.05017596,127.51,127.47,8.46628167]
[1767364313033,7.063,127.55,127.47,8.5212454]
[1767364313230,1.40594997,127.57,127.48,1.39918167]
[1767364313632,1.40594997,127.57,127.49,94.05918167]
[1767364313937,0.05597153,127.54,127.52,0.05880293]
[1767364314537,0.05597153,127.54,127.46,94.07918167]
[1767364314742,1.40594997,127.55,127.46,94.07918167]
[1767364315038,1.40594997,127.53,127.43,1.39918167]
[1767364315337,1.40594997,127.53,127.43,94.07918167]
[1767364315544,0.0574517,127.49,127.47,0.05418767]
[1767364317033,0.0574517,127.49,127.43,94.07918167]
[1767364317239,0.0574517,127.49,127.41,7.07]
[1767364317437,111.3750648,127.51,127.41,8.44724532]
[1767364318147,0.05588254,127.47,127.41,1.37724532]
[1767364318339,0.05588254,127.47,127.39,101.12844532]
[1767364318542,1.4728648,127.49,127.39,101.12844532]
[1767364319345,0.05415605,127.45,127.39,101.12844532]
[1767364319548,0.05415605,127.45,127.37,8.44944532]
[1767364319738,0.05752178,127.42,127.37,8.44944532]
[1767364320249,0.05752178,127.42,127.37,1.37724532]
[1767364320943,1.4728648,127.47,127.37,1.37724532]
[1767364321149,1.4728648,127.45,127.34,1.37724532]
[1767364321347,7.069,127.44,127.36,1.37724532]
[1767364321553,1.4728648,127.45,127.36,1.37724532]
[1767364321755,111.4531648,127.42,127.33,1.37724532]
[1767364322047,7.0713,127.4,127.33,1.37724532]
[1767364322234,111.4593648,127.41,127.33,1.37724532]
[1767364322545,1.4728648,127.4,127.32,11.47749464]
[1767364323040,0.05381303,127.37,127.32,11.47749464]
[1767364323248,1.52667783,127.37,127.32,9.464e-05]
[1767364323441,0.05381303,127.37,127.32,9.464e-05]
[1767364324647,1.52667783,127.37,127.32,9.464e-05]
[1767364325042,1.4728648,127.33,127.32,9.464e-05]
[1767364325352,1.4728648,127.33,127.24,1.37724532]
[1767364325649,0.0527361,127.3,127.24,1.37724532]
[1767364327544,1.4728648,127.29,127.21,1.37724532]
[1767364327751,0.05503003,127.26,127.2,101.88209477]
[1767364327949,0.05503003,127.26,127.18,8.46014532]
[1767364328154,0.05101068,127.23,127.18,8.46014532]
[1767364328335,0.05101068,127.23,127.18,101.22014532]
[1767364328637,0.05101068,127.23,127.18,94.13724532]
[1767364329249,1.4728648,127.28,127.18,101.22024532]
[1767364329440,444.71744092,127.35,127.18,101.22024532]
[1767364329441,111.5392648,127.32,127.2,1.37724532]
[1767364329636,1.4728648,127.31,127.2,1.37724532]
[1767364329936,8.5496648,127.3,127.21,7.0813]
[1767364330134,8.5496648,127.3,127.2,94.15724532]
[1767364330337,0.05259154,127.26,127.24,0.05393367]
[1767364330740,7.0758,127.32,127.24,0.05393367]
[1767364330939,1.4728648,127.33,127.22,114.69644092]
[1767364331141,1.4728648,127.33,127.25,1.37724532]
[1767364331546,8.5480648,127.33,127.25,1.37724532]
[1767364332048,0.05534619,127.3,127.22,13.01038624]
[1767364332346,1.4728648,127.3,127.19,1.37724532]
[1767364332545,1.4728648,127.3,127.2,1.37724532]
[1767364332546,7.0774,127.29,127.2,1.37724532]
[1767364333141,0.04992343,127.26,127.23,0.05968233]
[1767364333861,0.04992343,127.26,127.19,92.82]
[1767364334050,0.04992343,127.26,127.19,94.19724532]
[1767364334248,0.04992343,127.26,127.2,1.37724532]
[1767364334751,0.04992343,127.26,127.17,1.37724532]
[1767364335053,0.05511935,127.23,127.18,92.82]
[1767364335242,0.05511935,127.23,127.17,1.37724532]
[1767364336358,0.05511935,127.23,127.15,94.21724532]
[1767364336555,0.05810415,127.2,127.15,94.21724532]
[1767364336752,1.4728648,127.25,127.16,1.37724532]
[1767364336948,1.4728648,127.25,127.15,92.84]
[1767364337251,1.4728648,127.21,127.11,4.55234092]
[1767364337447,1.4728648,127.21,127.11,1.37724532]
[1767364337646,8.5524648,127.25,127.15,1.43063006]
[1767364337849,8.5524648,127.25,127.15,1.37724532]
[1767364338052,1.4728648,127.24,127.13,4.55234092]
[1767364338252,1.4728648,127.24,127.13,92.84]
[1767364338551,94.3128648,127.27,127.15,1.37724532]
[1767364338853,1.4728648,127.27,127.2,0.05734535]
[1767364339045,8.5524648,127.25,127.2,0.05734535]
[1767364339244,1.4728648,127.25,127.2,0.05734535]
[1767364339550,1.4728648,127.23,127.16,92.86]
[1767364339748,0.05792924,127.21,127.13,1.37724532]
[1767364339948,1.4728648,127.23,127.13,1.37724532]
[1767364340548,1.4728648,127.22,127.13,94.23724532]
[1767364340842,0.05972243,127.19,127.11,92.86]
[1767364341043,1.4728648,127.2,127.11,94.23724532]
[1767364341243,1.4728648,127.2,127.11,1.37724532]
[1767364341448,1.4728648,127.19,127.11,1.37724532]
[1767364341843,8.5563648,127.18,127.08,1.37724532]
[1767364342045,1.52458842,127.14,127.08,70.33656638]
[1767364342351,1.52458842,127.14,127.01,11.60926338]
[1767364342352,110.2463,127.11,127.01,11.60926338]
[1767364342661,110.2581,127.1,127.01,11.60926338]
[1767364343043,0.05513254,127.07,127.01,11.60926338]
[1767364343652,0.05513254,127.07,126.95,1.37724532]
[1767364343953,0.05369897,127.02,126.95,1.37724532]
[1767364344157,110.2786,127.08,126.95,1.37724532]
[1767364344158,7.0889,127.08,126.97,1.37724532]
[1767364344348,110.2547,127.1,126.99,1.37724532]
[1767364344654,110.2311,127.13,127.01,1.37724532]
[1767364344846,110.2282,127.13,127.02,1.37724532]
[1767364345042,110.2199,127.14,127.06,0.05633728]
[1767364345249,203.1339,127.15,127.03,5.92958624]
[1767364345550,121.85164092,127.15,127.03,1.37724532]
[1767364345856,7.0854,127.15,127.04,1.37724532]
[1767364346077,92.92,127.16,127.05,1.47524092]
[1767364346243,0.06021924,127.12,127.09,0.05577517]
[1767364346449,110.1836,127.19,127.07,1.47524092]
[1767364346649,114.69864092,127.23,127.11,1.37268785]
[1767364346956,114.68354092,127.25,127.13,1.37268785]
[1767364347149,110.1358,127.24,127.13,1.37268785]
[1767364347350,0.05080778,127.2,127.17,0.05776622]
[1767364347550,0.05080778,127.2,127.1,98.86502877]
[1767364347750,110.162,127.21,127.1,94.31268785]
[1767364348147,110.2025,127.16,127.07,1.37268785]
[1767364348360,110.2126,127.15,127.04,1.37268785]
[1767364348553,0.05989846,127.11,127.08,0.05449054]
[1767364348954,100.024,127.17,127.08,0.05449054]
[1767364349262,92.94,127.17,127.07,1.37268785]
[1767364349452,117.2616,127.19,127.08,1.37268785]
[1767364349649,117.2616,127.19,127.04,5.92502877]
[1767364349650,110.2029,127.16,127.04,5.92502877]
[1767364349953,0.05360544,127.11,127.09,0.05320043]
[1767364350257,92.94,127.17,127.09,1.42588828]
[1767364350451,110.1722,127.2,127.1,1.37268785]
[1767364350649,7.0815,127.22,127.11,1.37268785]
[1767364350852,110.1687,127.2,127.11,1.37268785]
[1767364351047,110.1511,127.22,127.11,1.37268785]
[1767364351248,0.05124541,127.18,127.15,0.0594716]
[1767364351650,0.05124541,127.18,127.07,118.73898785]
[1767364351850,7.0831,127.19,127.08,94.33268785]
[1767364352056,110.1501,127.22,127.11,1.37268785]
[1767364352248,117.241,127.21,127.11,1.37268785]
[1767364352458,110.1684,127.2,127.11,1.37268785]
[1767364352757,7.0828,127.19,127.11,1.37268785]
[1767364352965,0.04963262,127.16,127.14,0.05036854]
[1767364353155,0.04963262,127.16,127.08,1.37268785]
[1767364353357,110.1895,127.18,127.08,1.37268785]
[1767364353761,110.1939,127.17,127.05,94.33268785]
[1767364353961,110.1965,127.17,127.06,1.37268785]
[1767364354569,0.05993713,127.13,127.1,0.05185864]
[1767364354763,110.28823713,127.13,127.03,1.37268785]
[1767364354960,110.2283,127.13,127.03,1.37268785]
[1767364355154,110.2368,127.12,127.03,1.37268785]
[1767364355959,0.04994414,127.09,127.06,0.05576707]
[1767364356165,0.04994414,127.09,127.06,0.05870592]
[1767364357871,0.04994414,127.09,127.01,92.96]
[1767364358172,110.2482,127.11,127.01,92.96]
[1767364358569,110.2628,127.09,127.0,1.37268785]
[1767364358958,0.04963637,127.06,127.0,1.37268785]
[1767364361175,7.13983637,127.06,126.99,92.98]
[1767364361362,0.04963637,127.06,127.0,1.37268785]
[1767364362072,0.04963637,127.06,127.01,1.37268785]
[1767364362662,0.04963637,127.06,126.99,93.0]
[1767364362973,0.05304682,127.04,126.99,94.37268785]
[1767364363166,7.0886,127.09,127.0,1.37268785]
[1767364363567,7.0886,127.09,127.01,1.37268785]
[1767364363762,93.0,127.11,127.01,1.37268785]
[1767364363967,100.0875,127.11,127.01,1.37268785]
[1767364364267,7.0875,127.11,127.05,0.05159096]
[1767364364471,7.0863,127.13,127.05,0.05159096]
[1767364364771,7.0863,127.13,127.05,1.37268785]
[1767364365170,0.05594678,127.1,127.08,0.05648187]
[1767364365370,0.05594678,127.1,127.02,93.0]
[1767364365673,110.2505,127.11,127.02,93.0]
[1767364365874,110.2505,127.11,127.01,1.37268785]
[1767364366178,7.0874,127.11,127.01,1.37268785]
[1767364366378,110.2252,127.14,127.05,0.06040986]
[1767364366677,110.2252,127.14,127.01,110.3285]
[1767364366678,110.2252,127.14,127.03,1.37268785]
[1767364366870,110.2252,127.14,127.03,94.37268785]
[1767364367074,110.2465,127.11,126.99,1.37268785]
[1767364367268,110.2739,127.08,126.99,1.37268785]
[1767364367469,0.05204729,127.05,127.02,0.05003008]
[1767364369478,0.05204729,127.05,126.96,101.48778785]
[1767364369781,203.2949,127.08,126.97,1.37268785]
[1767364370374,203.2949,127.08,126.97,8.46758785]
[1767364370570,0.05304638,127.04,127.01,0.05067619]
[1767364370775,110.242,127.12,127.01,1.42336404]
[1767364371078,110.242,127.12,127.01,1.37268785]
[1767364371477,110.2359,127.13,127.02,1.37268785]
[1767364371878,0.05226228,127.09,127.06,0.05470089]
[1767364372876,93.04,127.15,127.06,0.05470089]
[1767364373078,110.1922,127.18,127.05,1.37268785]
[1767364373281,110.1922,127.18,127.07,1.37268785]
[1767364373483,110.1607,127.21,127.09,1.37268785]
[1767364373671,203.1886,127.23,127.11,1.37268785]
[1767364373873,110.1334,127.24,127.16,0.05086079]
[1767364374072,110.1334,127.24,127.13,8.45858785]
[1767364374073,110.1423,127.23,127.13,1.37268785]
[1767364374578,110.1512,127.22,127.13,1.37268785]
[1767364374777,110.1604,127.21,127.13,1.37268785]
[1767364374979,0.05159542,127.18,127.09,1.37268785]
[1767364375181,110.171,127.2,127.1,93.02]
[1767364375375,110.171,127.2,127.09,1.37268785]
[1767364375376,110.1854,127.18,127.09,1.37268785]
[1767364375978,110.1854,127.18,127.05,117.74187742]
[1767364375979,0.05988939,127.15,127.06,0.32067385]
[1767364376178,110.2134,127.15,127.06,0.32067385]
[1767364376481,110.2195,127.14,127.06,0.32067385]
[1767364376674,7.0871,127.12,127.06,0.32067385]
[1767364377078,0.05837596,127.1,127.08,0.04995048]
[1767364377275,110.2045,127.16,127.08,0.04995048]
[1767364377483,110.2045,127.16,127.06,0.32067385]
[1767364377484,110.241,127.12,127.03,0.32067385]
[1767364378198,0.05473869,127.09,127.06,0.05256394]
[1767364378682,110.32243869,127.09,126.96,117.82307742]
[1767364378887,110.2716,127.08,126.98,100.0941]
[1767364379484,0.05150723,127.04,127.02,0.05604099]
[1767364379680,0.05150723,127.04,126.96,7.0954]
[1767364379892,110.2852,127.07,126.96,7.0954]
[1767364380291,93.02,127.09,126.98,110.3574]
[1767364380597,0.04958479,127.05,127.02,0.05402223]
[1767364380983,0.04958479,127.05,126.99,0.32067385]
[1767364381186,0.04958479,127.05,126.97,0.32067385]
[1767364381390,7.0912,127.04,126.97,0.32067385]
[1767364381701,110.3099,127.04,126.93,0.32067385]
[1767364381888,110.3099,127.04,126.93,93.02]
[1767364382080,210.74787742,127.08,126.97,0.34207266]
[1767364382291,110.2698,127.09,126.97,0.34207266]
[1767364382491,7.0886,127.09,127.0,0.32067385]
[1767364382688,110.2301,127.13,127.0,0.32067385]
[1767364382895,93.02,127.13,127.01,110.65257385]
[1767364383092,203.2521,127.13,127.02,0.32067385]
[1767364383290,226.20717371,127.12,127.0,93.34067385]
[1767364383589,0.05640157,127.09,127.06,0.05365944]
[1767364383788,0.05640157,127.09,127.01,0.32067385]
[1767364383988,110.264,127.09,126.96,0.32067385]
[1767364384191,110.2719,127.08,126.97,93.02]
[1767364384398,110.2903,127.06,126.96,0.32067385]
[1767364384707,0.05998099,127.02,126.96,0.32067385]
[1767364385282,7.0891,127.08,126.98,0.32067385]
[1767364385496,110.2733,127.08,126.98,0.32067385]
[1767364385692,110.3065,127.04,126.93,7.0969]
[1767364385896,110.333,127.01,126.92,0.32067385]
[1767364386104,110.3271,127.02,126.92,0.32067385]
[1767364386302,7.45147742,127.04,126.96,0.05728307]
[1767364386303,7.0913,127.04,126.96,0.05728307]
[1767364386503,110.3155,127.03,126.96,0.05728307]
[1767364386688,110.3245,127.02,126.96,0.05728307]
[1767364386888,110.3245,127.02,126.87,110.4504]
[1767364386889,123.49444549,127.01,126.89,0.32067385]
[1767364387198,203.3726,127.01,126.9,0.32067385]
[1767364387398,93.04,127.02,126.91,0.32067385]
[1767364387590,110.3238,127.02,126.92,0.32067385]
[1767364387793,107.58327742,127.03,126.92,0.32067385]
[1767364387995,93.04,127.03,126.93,0.32067385]
[1767364388189,110.2872,127.07,126.97,0.05257735]
[1767364388394,209.03310231,127.06,126.95,0.32067385]
[1767364388591,203.3303,127.06,126.95,0.32067385]
[1767364388898,117.4075,127.03,126.92,7.0976]
[1767364389104,110.3243,127.02,126.91,0.32067385]
[1767364389397,0.0497705,126.98,126.89,0.32067385]
[1767364389602,110.3438,127.0,126.89,0.32067385]
[1767364389989,203.3952,127.01,126.89,0.32067385]
[1767364389990,100.1527,127.01,126.91,0.32067385]
[1767364390600,7.45147742,127.07,126.95,0.37365503]
[1767364390800,110.2927,127.06,126.95,0.32067385]
[1767364391001,7.0906,127.05,126.95,7.41667385]
[1767364391299,7.0906,127.05,126.9,203.4848]
[1767364391300,110.3101,127.04,126.91,0.32067385]
[1767364391498,7.093,127.01,126.91,7.41877385]
[1767364391694,0.05610589,126.97,126.95,0.05278607]
[1767364391896,0.05610589,126.97,126.91,0.32067385]
[1767364392390,93.06,127.03,126.92,0.32067385]
[1767364392796,110.2984,127.05,126.94,0.32067385]
[1767364392990,110.3064,127.04,126.94,0.32067385]
[1767364393202,110.2984,127.05,126.94,0.32067385]
[1767364393393,0.0592579,127.01,126.98,0.05393614]
[1767364393593,0.05529682,127.01,126.98,0.0519357]
[1767364393794,100.51147742,127.08,126.98,0.0519357]
[1767364393996,110.2641,127.09,126.98,0.32067385]
[1767364394197,110.2641,127.09,126.98,93.38067385]
[1767364394503,110.2805,127.07,126.98,0.32067385]
[1767364394693,110.2738,127.08,126.98,0.32067385]
[1767364394893,0.05486856,127.04,127.01,0.05151137]
[1767364395099,100.53147742,127.11,126.99,0.32067385]
[1767364395302,93.08,127.11,126.99,0.32067385]
[1767364395504,110.2433,127.12,126.99,0.32067385]
[1767364395704,7.45147742,127.11,126.99,0.32067385]
[1767364395905,110.2433,127.12,127.0,0.32067385]
[1767364396195,110.2348,127.13,127.04,0.05609689]
[1767364396196,7.0875,127.11,127.04,0.05609689]
[1767364396399,7.0875,127.11,127.02,100.47267385]
[1767364396596,110.2405,127.12,127.02,93.38067385]
[1767364396792,110.2455,127.11,127.0,0.32067385]
[1767364396999,0.05992255,127.07,127.04,0.05490776]
[1767364397199,0.05992255,127.07,126.97,0.32067385]
[1767364397401,110.2743,127.08,126.97,0.32067385]
[1767364397602,210.77697742,127.11,126.98,0.32067385]
[1767364398005,107.61907742,127.11,127.0,0.32067385]
[1767364398191,110.2557,127.1,127.0,0.32067385]
[1767364398397,0.05052717,127.06,127.04,0.05129388]
[1767364399007,0.05052717,127.06,126.96,0.32067385]
[1767364399203,117.72597742,127.08,126.96,0.32067385]
[1767364399402,100.1486,127.09,126.99,7.41437385]
[1767364399602,110.2655,127.09,126.99,0.32067385]
[1767364399904,0.05652822,127.05,127.03,0.0564509]
[1767364400299,203.3028,127.12,127.03,0.0564509]
[1767364400607,117.67767742,127.14,127.02,0.32067385]
[1767364400608,110.2262,127.14,127.02,0.32067385]
[1767364400904,7.0874,127.11,127.02,0.32067385]
[1767364401100,110.2262,127.14,127.03,0.32067385]
[1767364401304,110.238,127.12,127.03,0.32067385]
[1767364401607,0.05306962,127.09,127.06,0.05482137]
[1767364402204,110.2724,127.08,126.98,93.06]
[1767364402501,203.298,127.12,127.0,0.32067385]
[1767364402802,110.2254,127.14,126.99,110.3447]
[1767364402803,203.2854,127.14,127.02,7.41267385]
[1767364402994,93.06,127.14,127.03,0.32067385]
[1767364403199,0.05449246,127.1,127.07,0.05781485]
[1767364404008,0.05449246,127.1,127.01,7.0926]
[1767364404211,110.2331,127.13,127.01,0.32067385]
[1767364404599,7.0876,127.11,127.01,0.32067385]
[1767364404799,110.2331,127.13,127.01,0.32067385]
[1767364404800,110.2405,127.12,127.01,0.32067385]
[1767364405094,93.06,127.14,127.05,0.05115833]
[1767364405304,110.2033,127.16,127.03,110.63147385]
[1767364405500,110.2033,127.16,127.04,0.32067385]
[1767364405709,110.2111,127.15,127.04,93.36067385]
[1767364406110,0.05243218,127.11,127.08,0.0550133]
[1767364406697,0.05243218,127.11,127.01,0.32062635]
[1767364406895,110.2398,127.12,127.01,93.36062635]
[1767364407101,110.233,127.13,127.02,0.32062635]
[1767364407301,7.0865,127.13,127.04,0.32062635]
[1767364407495,110.2289,127.13,127.04,0.32062635]
[1767364407703,110.2457,127.11,127.01,0.32062635]
[1767364408102,7.089,127.08,127.01,0.32062635]
[1767364408405,110.2457,127.11,127.01,0.32062635]
[1767364408707,117.69047742,127.12,127.01,0.32062635]
[1767364408909,0.0598236,127.08,127.05,0.05121618]
[1767364409103,0.0598236,127.08,127.05,0.05327509]
[1767364409809,110.1995,127.17,127.06,7.41052635]
[1767364410009,203.2303,127.18,127.06,0.32062635]
[1767364410305,93.04,127.18,127.07,93.36062635]
[1767364410699,0.0516209,127.14,127.11,0.05858993]
[1767364410902,0.0516209,127.14,127.05,0.32062635]
[1767364411105,110.2048,127.16,127.05,0.32062635]
[1767364411308,7.0867,127.12,127.05,7.41102635]
[1767364411708,110.2048,127.16,127.05,7.41102635]
[1767364411910,0.05005943,127.12,127.09,0.05352732]
[1767364412113,7.0849,127.16,127.09,0.05352732]
[1767364412312,110.1727,127.2,127.09,0.05352732]
[1767364412621,203.206,127.21,127.1,0.32062635]
[1767364412915,110.166,127.21,127.1,0.32062635]
[1767364413103,0.05653722,127.17,127.14,0.0554851]
[1767364414216,110.25293722,127.17,127.07,0.32062635]
[1767364414400,110.1964,127.17,127.07,0.32062635]
[1767364414599,110.1888,127.18,127.07,0.32062635]
[1767364414813,7.0841,127.17,127.08,7.40912635]
[1767364415007,114.76881755,127.19,127.08,0.32062635]
[1767364415208,0.05452945,127.15,127.12,0.05239503]
[1767364416209,0.05452945,127.15,127.05,0.32062635]
[1767364416414,114.78331755,127.17,127.06,93.02]
[1767364416620,110.1873,127.18,127.07,0.32062635]
[1767364417112,0.05639509,127.14,127.09,7.40882635]
[1767364417613,0.05639509,127.14,127.1,7.0877]